fUSD/lending_fUSD_20241227
["ID","MTS","AMOUNT","RATE_DAILY","PERIOD"]
[346777906,1735281033036,-437.074,0.0001242,2]
[346777907,1735281033047,-11839.0,0.00012488,2]
[346777908,1735281033059,-167.19,0.00012555,2]
[346777909,1735281033070,-438.98192196,0.00012667,2]
[346777910,1735281033082,-238.18300526,0.00012667,2]
[346777911,1735281033094,-161.70257612,0.00012667,2]
[346777912,1735281033106,-404.14745423,0.0001269,2]
[346777913,1735281033118,-438.98192191,0.00012706,2]
[346777914,1735281033129,-438.98192191,0.00012745,2]
[346777915,1735281033140,-500.0,0.00012766,2]
[346777916,1735281033152,-788.78,0.00012766,2]
[346777917,1735281033163,-500.0,0.00012766,2]
[346777918,1735281033174,-500.0,0.00012766,2]
[346777919,1735281033190,-1855.27,0.00012766,2]
[346777920,1735281033202,-601.54695102,0.00012766,2]
[346777921,1735281033215,-511.72,0.00012766,2]
[346777922,1735281033227,-710.84,0.00012766,2]
[346777923,1735281033239,-1608.41,0.00012766,2]
[346777924,1735281033251,-7249.65661718,0.00012767,2]
[346777925,1735281033263,-220344.60888437,0.00012767,2]
[346777926,1735281033297,-475.22000005,0.00012767,2]
[346777927,1735281033310,-4000.0000016,0.00012767,2]
[346777928,1735281033323,-586.2,0.00012767,2]
[346777929,1735281033377,-1667.53496317,0.00012767,2]
[346777930,1735281033391,-598.93662339,0.00012767,2]
[346777931,1735281033405,-500.0,0.00012767,2]
[346777932,1735281033418,-1803.96075961,0.00012767,2]
[346777933,1735281033434,-5561.0,0.00012767,2]
[346777942,1735281038242,-3889.0,0.00012321,2]
[346777943,1735281038252,-563.9,0.00012766,2]
[346777944,1735281038262,-23922.22716971,0.00012767,2]
[346777945,1735281038274,-1682.74138119,0.00012767,2]
[346777946,1735281038320,-59578.66290123,0.00012767,2]
[346777947,1735281038332,-333.37312191,0.00012767,2]
[346777948,1735281038402,-21374.17669279,0.00012767,2]
[346777949,1735281038480,-24439.19141542,0.00012767,2]
[346777950,1735281038491,-4469.77747567,0.00012767,2]
[346777951,1735281038507,-1019.75198005,0.00012767,2]
[346777952,1735281038519,-684.3000014,0.00012767,2]
[346777953,1735281038530,-13626.47147605,0.00012767,2]
[346777954,1735281038543,-40591.51144084,0.00012767,2]
[346777955,1735281038554,-8296.4823093,0.00012767,2]
[346777956,1735281038566,-290564.10279464,0.00012767,2]
[346777958,1735281038575,-7399.3309559,0.00012767,2]
[346777960,1735281038612,-946.53951525,0.00012767,2]
[346777966,1735281040287,-500.0,0.00012766,2]
[346777967,1735281040297,-2673.48719031,0.00012767,2]
[346777968,1735281040309,-722.19529931,0.00012767,2]
[346777970,1735281040324,-1824.25029334,0.00012767,2]
[346777971,1735281040336,-802.66496489,0.00012767,2]
[346777972,1735281040347,-632.27300002,0.00012767,2]
[346777973,1735281040359,-425.1582348,0.00012767,2]
[346777974,1735281040401,-604.27660424,0.00012767,2]
[346777975,1735281040422,-151627.34820672,0.00012767,2]
[346777976,1735281040440,-2240.91721747,0.00012767,2]
[346777977,1735281040519,-568.5368175,0.00012767,2]
[346777978,1735281040665,-1787.55805162,0.00012767,2]
[346777979,1735281040676,-9850.47681093,0.00012767,2]
[346777980,1735281040690,-1191.62112834,0.00012767,2]
[346777985,1735281043359,-229.91235395,0.00012766,2]
[346777986,1735281043370,-500.0,0.00012766,2]
[346777987,1735281043380,-808.85,0.00012766,2]
[346777988,1735281043390,-1156.9790089,0.00012767,2]
[346777989,1735281043401,-3427.16215668,0.00012767,2]
[346777990,1735281043413,-6855.90067227,0.00012767,2]
[346777991,1735281043424,-583.85773107,0.00012767,2]
[346777992,1735281043436,-5242.74940921,0.00012767,2]
[346777993,1735281043501,-500.0,0.00012766,2]
[346777994,1735281043510,-6836.18371553,0.00012767,2]
[346777995,1735281043521,-930.16104195,0.00012767,2]
[346777996,1735281043533,-6971.48568337,0.00012767,2]
[346777997,1735281043544,-21533.27470492,0.00012767,2]
[346777998,1735281043555,-10377.31968114,0.00012767,2]
[346777999,1735281043578,-1469.6840553,0.00012767,2]
[346778000,1735281043589,-1580.61261136,0.00012767,2]
[346778001,1735281043600,-1132.58449139,0.00012767,2]
[346778002,1735281043615,-744.19027976,0.00012767,2]
[346778003,1735281043625,-666.14308716,0.00012767,2]
[346778013,1735281064641,-848.71,0.00012766,2]
[346778014,1735281064651,-2722.95243526,0.00012767,2]
[346778015,1735281064663,-13917.51677167,0.00012767,2]
[346778016,1735281064675,-328.74902216,0.00012767,2]
[346778017,1735281064687,-38916.72389401,0.00012767,2]
[346778018,1735281064703,-772.02551414,0.00012767,2]
[346778019,1735281064715,-524.99914336,0.00012767,2]
[346778020,1735281064752,-1303.17693193,0.00012767,2]
[346778021,1735281064764,-2049.27708235,0.00012767,2]
[346778022,1735281064776,-2238.27476078,0.00012767,2]
[346778023,1735281064794,-463.49596685,0.00012767,2]
[346778024,1735281064806,-324.95834368,0.00012767,2]
[346778025,1735281064913,-1449.07818022,0.00012767,2]
[346778026,1735281064925,-9623.7,0.00012767,2]
[346778027,1735281064940,-1865.90015416,0.00012767,2]
[346778028,1735281064952,-602.0,0.00012767,2]
[346778029,1735281064963,-2312.42048,0.00012767,2]
[346778030,1735281064975,-500.0,0.00012767,2]
[346778031,1735281064986,-4910.85038656,0.00012767,2]
[346778032,1735281064998,-7242.9568409,0.00012767,2]
[346778033,1735281065010,-476576.26543964,0.00012767,2]
[346778034,1735281065045,-8987.6809423,0.00012767,2]
[346778045,1735281629908,-2958.45,9.9e-05,2]
[346778106,1735282231687,-58024.55,9.9e-05,2]
[346778107,1735282231697,-158.39,0.00010137,2]
[346778108,1735282231707,-200.0,0.00011061,2]
[346778109,1735282231717,-250.0,0.00011084,2]
[346778110,1735282231728,-367.52,0.00011146,2]
[346778111,1735282231740,-1500.0,0.00011185,2]
[346778112,1735282231749,-336.0,0.00011207,2]
[346778113,1735282231759,-250.0,0.00011207,2]
[346778114,1735282231768,-11513.25,0.00011227,2]
[346778115,1735282231778,-1041.21,0.00011302,2]
[346778116,1735282231787,-250.0,0.00011321,2]
[346778117,1735282231797,-431.73,0.00011329,2]
[346778118,1735282231806,-187.57,0.00011383,2]
[346778119,1735282231815,-23900.0,0.0001149,2]
[346778120,1735282231825,-396.4,0.0001167,2]
[346778121,1735282231835,-166.24,0.0001167,2]
[346778122,1735282231844,-19529.07,0.00011718,2]
[346778123,1735282231854,-1852.42,0.00011747,2]
[346778124,1735282231863,-732.45,0.00011771,2]
[346778125,1735282231873,-1000.0,0.00011802,2]
[346778126,1735282231885,-700.18,0.00011838,2]
[346778127,1735282231894,-169.43,0.00012333,2]
[346778129,1735282231903,-436.57,0.00012356,2]
[346778132,1735282231913,-151.28,0.00012356,2]
[346778134,1735282231923,-150.47,0.00012356,2]
[346778136,1735282231933,-150.0,0.00012356,2]
[346778138,1735282231942,-150.0,0.00012356,2]
[346778140,1735282231951,-153.87,0.00012356,2]
[346778142,1735282231963,-289.60061893,0.00012356,2]
[346778144,1735282231975,-146.96938107,0.00012356,2]
[346778146,1735282231984,-150.0,0.00012356,2]
[346778148,1735282231993,-150.0,0.00012356,2]
[346778150,1735282232002,-150.0,0.00012356,2]
[346778152,1735282232011,-435.91,0.00012356,2]
[346778154,1735282232021,-150.0,0.00012356,2]
[346778156,1735282232030,-150.0,0.00012356,2]
[346778158,1735282232039,-150.0,0.00012356,2]
[346778160,1735282232049,-2012.0,0.00012398,2]
[346778162,1735282232059,-1266.0,0.00012398,2]
[346778164,1735282232067,-633.0,0.00012398,2]
[346778166,1735282232077,-565.0,0.00012398,2]
[346778168,1735282232085,-150.0,0.00012398,2]
[346778170,1735282232095,-1900.0,0.00012398,2]
[346778172,1735282232103,-1256.0,0.00012398,2]
[346778174,1735282232112,-816.0,0.00012398,2]
[346778176,1735282232122,-922.0,0.00012398,2]
[346778178,1735282232131,-3772.0,0.00012398,2]
[346778180,1735282232141,-3685.0,0.00012398,2]
[346778181,1735282232150,-536.0,0.00012398,2]
[346778183,1735282232159,-3889.0,0.00012398,2]
[346778184,1735282232168,-150.0,0.00012398,2]
[346778186,1735282232177,-41015.35954147,0.000124,2]
[346778200,1735282232304,-566.75275375,0.000124,2]
[346778202,1735282232316,-5191.03017675,0.000124,2]
[346778224,1735282237670,-631.14,9.28e-05,2]
[346778225,1735282237679,-631.14,0.00011544,2]
[346778226,1735282237691,-3841.817172,0.000124,2]
[346778227,1735282237767,-4556.8642812,0.000124,2]
[346778228,1735282237780,-1476.55,0.000124,2]
[346778388,1735282239523,-2485.58710245,0.000124,2]
[346778390,1735282239534,-764.75220241,0.000124,2]
[346778404,1735282239659,-10598.25405389,0.000124,2]
[346778416,1735282239763,-615.6823226,0.000124,2]
[346778427,1735282239862,-5450.34025,0.000124,2]
[346778430,1735282239874,-16795.2913419,0.000124,2]
[346778702,1735282242529,-178.63430208,0.00012393,2]
[346778704,1735282242539,-1938.33914314,0.000124,2]
[346778709,1735282242789,-1700.20351492,0.000124,2]
[346778712,1735282245513,-6094.69149471,0.000124,2]
[346778713,1735282245634,-3765.0498,0.000124,2]
[346778714,1735282245646,-479.66,0.000124,2]
[346778715,1735282245662,-963.52268,0.000124,2]
[346778716,1735282245946,-340272.36731781,0.000124,2]
[346778717,1735282245956,-418.756,0.0001242,2]
[346778718,1735282245968,-158.9023,0.00012493,2]
[346778719,1735282246234,-5398.7978,0.00012493,2]
[346778720,1735282246244,-82841.1579,0.00012593,2]
[346778721,1735282246254,-2541.21,0.00012664,2]
[346778722,1735282246264,-844.67,0.00012664,2]
[346778723,1735282246273,-6075.81,0.00012664,2]
[346778724,1735282246283,-1182.57,0.00012664,2]
[346778725,1735282246293,-2283.64,0.00012664,2]
[346778726,1735282246303,-14720.49,0.00012664,2]
[346778727,1735282246312,-2080.78,0.00012664,2]
[346778728,1735282246322,-9018.3,0.00012664,2]
[346778729,1735282246332,-2794.83,0.00012664,2]
[346778730,1735282246341,-1846.97,0.00012664,2]
[346778731,1735282246351,-7477.91,0.00012664,2]
[346778732,1735282246360,-792.67,0.00012664,2]
[346778733,1735282246369,-1867.15,0.00012664,2]
[346778734,1735282246379,-500.0,0.00012664,2]
[346778735,1735282246388,-681.22,0.00012664,2]
[346778736,1735282246397,-500.0,0.00012664,2]
[346778737,1735282246406,-3803.25,0.00012664,2]
[346778738,1735282246416,-766.31,0.00012664,2]
[346778739,1735282246425,-500.0,0.00012664,2]
[346778740,1735282246435,-563.14,0.00012664,2]
[346778741,1735282246444,-500.0,0.00012664,2]
[346778742,1735282246453,-2352.89,0.00012664,2]
[346778743,1735282246463,-717.88,0.00012664,2]
[346778744,1735282246472,-5145.7889,0.00012667,2]
[346778745,1735282246481,-5000.0,0.00012667,2]
[346778746,1735282246491,-500.0,0.00012681,2]
[346778747,1735282246500,-500.0,0.00012681,2]
[346778748,1735282246510,-500.0,0.00012681,2]
[346778749,1735282246519,-568.23,0.00012681,2]
[346778750,1735282246528,-500.0,0.00012681,2]
[346778751,1735282246537,-783.94,0.00012681,2]
[346778752,1735282246547,-500.0,0.00012681,2]
[346778753,1735282246556,-500.0,0.00012681,2]
[346778754,1735282246565,-500.0,0.00012681,2]
[346778755,1735282246575,-631.04,0.00012681,2]
[346778756,1735282246584,-500.0,0.00012681,2]
[346778757,1735282246593,-505.49389003,0.00012681,2]
[346778758,1735282246603,-500.0,0.00012681,2]
[346778759,1735282246611,-500.0,0.00012681,2]
[346778760,1735282246621,-501.4062233,0.00012681,2]
[346778761,1735282246630,-500.0,0.00012681,2]
[346778762,1735282246639,-500.0,0.00012681,2]
[346778763,1735282246649,-501.4330523,0.00012681,2]
[346778764,1735282246659,-645.97,0.00012681,2]
[346778765,1735282246668,-500.0,0.00012681,2]
[346778766,1735282246677,-500.0,0.00012681,2]
[346778767,1735282246687,-500.0,0.00012681,2]
[346778768,1735282246697,-502.06591411,0.00012681,2]
[346778769,1735282246706,-500.73876344,0.00012681,2]
[346778770,1735282246716,-722.52,0.00012681,2]
[346778771,1735282246725,-500.0,0.00012681,2]
[346778772,1735282246734,-500.0,0.00012681,2]
[346778773,1735282246744,-500.0,0.00012681,2]
[346778774,1735282246753,-500.0,0.00012681,2]
[346778775,1735282246763,-500.0,0.00012681,2]
[346778776,1735282246772,-500.0,0.00012681,2]
[346778777,1735282246781,-500.0,0.00012681,2]
[346778778,1735282246791,-795.21,0.00012681,2]
[346778779,1735282246800,-501.13194692,0.00012681,2]
[346778780,1735282246809,-500.0,0.00012681,2]
[346778781,1735282246819,-500.0,0.00012681,2]
[346778782,1735282246828,-501.33850541,0.00012681,2]
[346778783,1735282246837,-500.0,0.00012681,2]
[346778784,1735282246847,-500.0,0.00012681,2]
[346778785,1735282246856,-500.0,0.00012681,2]
[346778786,1735282246865,-500.0,0.00012681,2]
[346778787,1735282246875,-500.0,0.00012681,2]
[346778788,1735282246887,-500.0,0.00012681,2]
[346778789,1735282246896,-550.77,0.00012681,2]
[346778790,1735282246906,-500.0,0.00012681,2]
[346778791,1735282246916,-500.0,0.00012681,2]
[346778792,1735282246927,-528.35,0.00012681,2]
[346778793,1735282246936,-500.0,0.00012681,2]
[346778794,1735282246946,-500.0,0.00012681,2]
[346778795,1735282246955,-729.2,0.00012681,2]
[346778796,1735282246965,-757.14,0.00012681,2]
[346778797,1735282246975,-500.0,0.00012681,2]
[346778798,1735282246984,-500.0,0.00012681,2]
[346778799,1735282246993,-500.0,0.00012681,2]
[346778800,1735282247003,-500.0,0.00012681,2]
[346778801,1735282247012,-500.0,0.00012681,2]
[346778802,1735282247022,-500.0,0.00012681,2]
[346778803,1735282247031,-501.34913066,0.00012681,2]
[346778804,1735282247041,-500.0,0.00012681,2]
[346778805,1735282247050,-500.0,0.00012681,2]
[346778806,1735282247059,-500.0,0.00012681,2]
[346778807,1735282247069,-500.0,0.00012681,2]
[346778808,1735282247078,-500.0,0.00012681,2]
[346778809,1735282247088,-501.3715088,0.00012681,2]
[346778810,1735282247097,-500.0,0.00012681,2]
[346778811,1735282247107,-500.0,0.00012681,2]
[346778812,1735282247116,-500.0,0.00012681,2]
[346778813,1735282247125,-500.0,0.00012681,2]
[346778814,1735282247137,-500.0,0.00012681,2]
[346778815,1735282247146,-500.0,0.00012681,2]
[346778816,1735282247155,-500.0,0.00012681,2]
[346778817,1735282247164,-500.0,0.00012681,2]
[346778818,1735282247174,-500.0,0.00012681,2]
[346778819,1735282247184,-500.0,0.00012681,2]
[346778820,1735282247194,-780.66,0.00012681,2]
[346778821,1735282247203,-500.0,0.00012681,2]
[346778822,1735282247213,-394.07952815,0.00012681,2]
[346778823,1735282247223,-500.0,0.00012681,2]
[346778824,1735282247233,-500.0,0.00012681,2]
[346778825,1735282247243,-500.0,0.00012681,2]
[346778826,1735282247253,-500.0,0.00012681,2]
[346778827,1735282247262,-500.0,0.00012681,2]
[346778828,1735282247271,-500.0,0.00012681,2]
[346778829,1735282247280,-647.54,0.00012681,2]
[346778830,1735282247290,-500.0,0.00012681,2]
[346778831,1735282247300,-500.0,0.00012681,2]
[346778832,1735282247310,-500.0,0.00012681,2]
[346778833,1735282247319,-500.0,0.00012681,2]
[346778834,1735282247328,-500.0,0.00012681,2]
[346778835,1735282247337,-500.0,0.00012681,2]
[346778836,1735282247346,-500.0,0.00012681,2]
[346778837,1735282247356,-500.0,0.00012681,2]
[346778838,1735282247366,-500.0,0.00012681,2]
[346778839,1735282247375,-500.0,0.00012681,2]
[346778840,1735282247384,-855.5,0.00012681,2]
[346778841,1735282247393,-500.0,0.00012681,2]
[346778842,1735282247404,-500.0,0.00012681,2]
[346778843,1735282247413,-500.0,0.00012681,2]
[346778844,1735282247422,-500.0,0.00012681,2]
[346778845,1735282247431,-500.0,0.00012681,2]
[346778846,1735282247440,-809.01,0.00012681,2]
[346778847,1735282247450,-500.0,0.00012681,2]
[346778848,1735282247460,-500.0,0.00012681,2]
[346778849,1735282247470,-159.85826717,0.00012681,2]
[346778850,1735282247479,-500.0,0.00012681,2]
[346778851,1735282247488,-504.57679449,0.00012681,2]
[346778852,1735282247498,-500.0,0.00012681,2]
[346778853,1735282247507,-500.0,0.00012681,2]
[346778854,1735282247518,-500.0,0.00012681,2]
[346778855,1735282247528,-500.0,0.00012681,2]
[346778856,1735282247537,-500.0,0.00012681,2]
[346778857,1735282247547,-500.0,0.00012681,2]
[346778858,1735282247556,-500.0,0.00012681,2]
[346778859,1735282247566,-500.0,0.00012681,2]
[346778860,1735282247576,-500.0,0.00012681,2]
[346778861,1735282247585,-500.0,0.00012681,2]
[346778862,1735282247595,-500.0,0.00012681,2]
[346778863,1735282247604,-500.0,0.00012681,2]
[346778864,1735282247613,-500.0,0.00012681,2]
[346778865,1735282247622,-500.86375513,0.00012681,2]
[346778866,1735282247632,-500.0,0.00012681,2]
[346778867,1735282247641,-500.0,0.00012681,2]
[346778868,1735282247650,-502.32174816,0.00012681,2]
[346778869,1735282247660,-500.0,0.00012681,2]
[346778870,1735282247669,-500.0,0.00012681,2]
[346778871,1735282247678,-500.0,0.00012681,2]
[346778872,1735282247687,-500.0,0.00012681,2]
[346778873,1735282247696,-500.0,0.00012681,2]
[346778874,1735282247706,-500.0,0.00012681,2]
[346778875,1735282247715,-500.0,0.00012681,2]
[346778876,1735282247724,-500.0,0.00012681,2]
[346778877,1735282247734,-500.0,0.00012681,2]
[346778878,1735282247743,-500.0,0.00012681,2]
[346778879,1735282247755,-500.44573719,0.00012681,2]
[346778880,1735282247766,-791.0,0.00012681,2]
[346778881,1735282247775,-500.0,0.00012681,2]
[346778882,1735282247784,-500.0,0.00012681,2]
[346778883,1735282247793,-500.0,0.00012681,2]
[346778884,1735282247803,-506.35732329,0.00012681,2]
[346778885,1735282247812,-500.0,0.00012681,2]
[346778886,1735282247822,-506.1708129,0.00012681,2]
[346778887,1735282247831,-500.0,0.00012681,2]
[346778888,1735282247841,-500.60202448,0.00012681,2]
[346778889,1735282247849,-597.61,0.00012681,2]
[346778890,1735282247859,-915.48,0.00012681,2]
[346778891,1735282247868,-500.0,0.00012681,2]
[346778892,1735282247878,-500.0,0.00012681,2]
[346778893,1735282247892,-643.68,0.00012681,2]
[346778894,1735282247903,-500.0,0.00012681,2]
[346778895,1735282247913,-500.0,0.00012681,2]
[346778896,1735282247922,-500.0,0.00012681,2]
[346778897,1735282247932,-500.0,0.00012681,2]
[346778898,1735282247941,-500.0,0.00012681,2]
[346778899,1735282247951,-500.0,0.00012681,2]
[346778900,1735282247960,-500.0,0.00012681,2]
[346778901,1735282247970,-500.0,0.00012681,2]
[346778902,1735282247979,-150.0,0.000127,3]
[346778903,1735282247988,-500.0,0.00012764,2]
[346778904,1735282247998,-1042.57,0.00012764,2]
[346778905,1735282248008,-3479.68613256,0.00012764,2]
[346778906,1735282248026,-1072.93386744,0.00012764,2]
[346778907,1735282248035,-1880.28,0.00012764,2]
[346778908,1735282248045,-6092.84,0.00012764,2]
[346778909,1735282248054,-3002.34,0.00012764,2]
[346778910,1735282248064,-5426.21,0.00012764,2]
[346778911,1735282248074,-1881.13,0.00012764,2]
[346778912,1735282248083,-2666.32,0.00012764,2]
[346778913,1735282248093,-2079.52,0.00012764,2]
[346778914,1735282248102,-6114.27,0.00012764,2]
[346778915,1735282248112,-500.0,0.00012764,2]
[346778916,1735282248122,-7856.66,0.00012764,2]
[346778917,1735282248131,-151.0,0.00012764,2]
[346778918,1735282248141,-2205.23,0.00012764,2]
[346778919,1735282248150,-151.0,0.00012764,2]
[346778920,1735282248161,-1774.85,0.00012764,2]
[346778921,1735282248170,-3296.58,0.00012764,2]
[346778922,1735282248179,-502.79845139,0.00012765,2]
[346778923,1735282248189,-500.0,0.00012765,2]
[346778924,1735282248199,-500.0,0.00012765,2]
[346778925,1735282248208,-1272.56,0.00012765,2]
[346778926,1735282248218,-553.58,0.00012765,2]
[346778927,1735282248227,-500.0,0.00012765,2]
[346778928,1735282248237,-500.0,0.00012765,2]
[346778929,1735282248247,-1084.06,0.00012765,2]
[346778930,1735282248257,-1954.47,0.00012765,2]
[346778931,1735282248267,-1426.68,0.00012765,2]
[346778932,1735282248276,-1595.36,0.00012765,2]
[346778933,1735282248286,-500.0,0.00012765,2]
[346778934,1735282248295,-1307.79,0.00012765,2]
[346778935,1735282248305,-913.43,0.00012765,2]
[346778936,1735282248315,-500.0,0.00012765,2]
[346778937,1735282248324,-500.0,0.00012765,2]
[346778938,1735282248334,-193.29043091,0.00012765,2]
[346778939,1735282248343,-821.1,0.00012765,2]
[346778940,1735282248352,-567.09,0.00012765,2]
[346778941,1735282248362,-592.33035766,0.00012765,2]
[346778942,1735282248371,-629.41,0.00012765,2]
[346778943,1735282248380,-500.0,0.00012765,2]
[346778944,1735282248390,-813.45,0.00012765,2]
[346778945,1735282248399,-500.0,0.00012765,2]
[346778946,1735282248408,-500.0,0.00012765,2]
[346778947,1735282248417,-946.39,0.00012765,2]
[346778948,1735282248427,-500.0,0.00012765,2]
[346778949,1735282248436,-1303.64,0.00012765,2]
[346778950,1735282248445,-500.0,0.00012765,2]
[346778951,1735282248454,-500.0,0.00012765,2]
[346778952,1735282248464,-688.54,0.00012765,2]
[346778953,1735282248474,-993.51,0.00012765,2]
[346778954,1735282248483,-601.88,0.00012765,2]
[346778955,1735282248492,-1345.11,0.00012765,2]
[346778956,1735282248503,-500.0,0.00012765,2]
[346778957,1735282248512,-1707.7,0.00012765,2]
[346778958,1735282248522,-5916.4,0.00012765,2]
[346778959,1735282248532,-500.0,0.00012765,2]
[346778960,1735282248542,-1599.77,0.00012765,2]
[346778961,1735282248551,-507.88145881,0.00012765,2]
[346778962,1735282248560,-595.69,0.00012765,2]
[346778963,1735282248570,-500.0,0.00012765,2]
[346778964,1735282248580,-613.76,0.00012765,2]
[346778965,1735282248589,-500.0,0.00012765,2]
[346778966,1735282248598,-500.0,0.00012765,2]
[346778967,1735282248608,-500.0,0.00012765,2]
[346778968,1735282248617,-500.0,0.00012765,2]
[346778969,1735282248627,-3278.36,0.00012765,2]
[346778970,1735282248637,-500.0,0.00012765,2]
[346778971,1735282248646,-500.0,0.00012765,2]
[346778972,1735282248655,-500.0,0.00012765,2]
[346778973,1735282248665,-500.0,0.00012765,2]
[346778974,1735282248674,-500.0,0.00012765,2]
[346778975,1735282248685,-3415.51,0.00012765,2]
[346778976,1735282248695,-500.0,0.00012765,2]
[346778977,1735282248705,-919.96,0.00012765,2]
[346778978,1735282248715,-746.64,0.00012765,2]
[346778979,1735282248724,-500.0,0.00012765,2]
[346778980,1735282248733,-1991.58,0.00012765,2]
[346778981,1735282248743,-788.65,0.00012765,2]
[346778982,1735282248753,-1169.41,0.00012765,2]
[346778983,1735282248762,-756.65,0.00012765,2]
[346778984,1735282248772,-500.0,0.00012765,2]
[346778985,1735282248781,-1692.27,0.00012765,2]
[346778986,1735282248791,-1732.22,0.00012765,2]
[346778987,1735282248800,-757.92,0.00012765,2]
[346778988,1735282248810,-635.29,0.00012765,2]
[346778989,1735282248819,-6105.52,0.00012765,2]
[346778990,1735282248829,-506.4,0.00012765,2]
[346778991,1735282248838,-2176.19,0.00012765,2]
[346778992,1735282248847,-500.0,0.00012765,2]
[346778993,1735282248856,-909.58,0.00012765,2]
[346778994,1735282248865,-500.0,0.00012765,2]
[346778995,1735282248875,-1363.61,0.00012765,2]
[346778996,1735282248884,-3497.73,0.00012765,2]
[346778997,1735282248896,-500.0,0.00012765,2]
[346778998,1735282248906,-738.0,0.00012765,2]
[346778999,1735282248915,-500.0,0.00012765,2]
[346779000,1735282248924,-151.0,0.00012765,2]
[346779001,1735282248934,-500.0,0.00012765,2]
[346779002,1735282248945,-500.0,0.00012765,2]
[346779003,1735282248954,-500.0,0.00012765,2]
[346779004,1735282248963,-2044.71,0.00012765,2]
[346779005,1735282248973,-217.49897725,0.00012765,2]
[346779006,1735282248981,-500.0,0.00012765,2]
[346779007,1735282248991,-500.0,0.00012765,2]
[346779008,1735282249001,-736.53,0.00012765,2]
[346779009,1735282249010,-500.0,0.00012765,2]
[346779010,1735282249020,-500.0,0.00012765,2]
[346779011,1735282249030,-500.0,0.00012765,2]
[346779012,1735282249039,-500.0,0.00012765,2]
[346779013,1735282249048,-511.64270688,0.00012765,2]
[346779014,1735282249058,-500.0,0.00012765,2]
[346779015,1735282249068,-500.0,0.00012765,2]
[346779016,1735282249077,-500.0,0.00012765,2]
[346779017,1735282249086,-414.71807598,0.00012765,2]
[346779018,1735282249096,-2610.7,0.00012765,2]
[346779019,1735282249105,-500.0,0.00012765,2]
[346779020,1735282249115,-408.16117812,0.00012765,2]
[346779021,1735282249124,-1196.62,0.00012765,2]
[346779022,1735282249133,-156.254298,0.00012765,2]
[346779023,1735282249143,-154.974434,0.00012765,2]
[346779024,1735282249152,-1573.392577,0.00012765,2]
[346779025,1735282249162,-500.0,0.00012765,2]
[346779026,1735282249171,-695.5,0.00012765,2]
[346779027,1735282249181,-2397.99,0.00012765,2]
[346779028,1735282249191,-1536.151553,0.00012765,2]
[346779029,1735282249200,-738.59,0.00012765,2]
[346779030,1735282249210,-606.39,0.00012765,2]
[346779031,1735282249219,-798.7,0.00012765,2]
[346779032,1735282249229,-151.0,0.00012765,2]
[346779033,1735282249238,-500.0,0.00012765,2]
[346779034,1735282249248,-500.0,0.00012765,2]
[346779035,1735282249257,-1588.19,0.00012765,2]
[346779036,1735282249266,-500.0,0.00012765,2]
[346779037,1735282249275,-17973.36,0.00012765,2]
[346779038,1735282249285,-1411.32,0.00012765,2]
[346779039,1735282249294,-151.0,0.00012765,2]
[346779040,1735282249304,-151.0,0.00012765,2]
[346779041,1735282249313,-994.94,0.00012765,2]
[346779042,1735282249323,-1139.88,0.00012765,2]